Workbook

Sheet Assignment
A1: We are now going to look at the same problem from the last module, but now based on Decision Making under Risk. As a review:
A2: Luna was trying to decide between:
A3: (1) Sell the product to another company and move to the beach,
A4: (2) Hire SBPR to market and distribute the product,
A5: (3) Market the product herself and sell on Amazon.
A7: Selling the product to another company, she can sell it for $45,000.
A8: If she chooses to hire SBPR to market and distribute the product, her payoff will depend on the economic environment (or states of nature). If the economy is “good”, then the estimated payoff to Luna is $85,000. “Moderate” economy is estimated to have a payoff of 60,000. “Bad” economy is estimated to have a payoff of $35,000 and if there is “Financial Crisis”, Luna would lose $500.
A9: If she chooses to market the product herself and sell on Amazon, her payoffs are as follows: If there is “good” economy, she estimates a payoff to be $100,000. “Moderate” economy is estimated to have a payoff of $70,000. “Bad” economy is estimated to have a payoff of $40,000 and “Financial Crisis “would cost Luna $15,000.
A10: New information: Jason, an economist friend has done research on the future economic environment and has determined that there is 30% chance of good economy, a 45% chance of moderate economy, a 20% chance of bad economy, and 5% chance of financial crisis.
A11: Questions:
A12: 1) What is the expected payoff if Luna choose to hire SBPR to market and distribute the product?
A13: 59475
A14: 2) What is the value of EVUPI.
A15: 72750
A16: 3) What is the vaue of EVPI?
A17: 4000
A18: 4) What is the value of the Expected Opportunity Loss(EOL)?
A19: 4000
A21: Questions on new Excel functions, based on Employee_data sheet
A22: Using the functions introduced in this module, answer the following questions.
A23: 5) What is the difference between the Today and Now function?
A24: Now function returns current date and time as date/time value while today function returns current date as date/time value
A25: 6) What is the total years at the company for those in the Research & Development department?
A26: 6863
A27: 7) How many people are in the Research & Development department?
A28: 961
A29: 8) What is the average salary for a Laboratory Technician?
A30: 6072.44
A31: 9) What is the highest number of years at the company for the Reseach and Development Department?
A32: 40
A33: 10) What is the lowest hourly rate for a Laboratory Techician?
A34: 30

Sheet format
A1: Payoff table
B2: State of Nature
A3: Decision Alternatives | B3: Good Economy | C3: Moderate Economy | D3: Bad Economy | E3: Financial Crisis
A4: Sell to another company | B4: 45000 | C4: 45000 | D4: 45000 | E4: 45000
A5: Hire SBPR to market and distribute the product | B5: 85000 | C5: 60000 | D5: 35000 | E5: -500
A6: Market the product herself and sell on Amazon, | B6: 100000 | C6: 70000 | D6: 40000 | E6: -15000
A9: Minimax Regret
A10: Regret table | B10: State of Nature
A11: Decision Alternatives | B11: =B3 -> Good Economy | C11: =C3 -> Moderate Economy | D11: Bad Economy | E11: =E3 -> Financial Crisis | F11: Max Regret Value | G11: Min
A12: =A4 -> Sell to another company | B12: =MAX(B4:B6)-B4 -> 55000 | C12: =MAX(C4:C6)-C4 -> 25000 | D12: =MAX(D4:D6)-D4 -> 0 | E12: =MAX(E4:E6)-E4 -> 0 | F12: =MAX(B12:E12) -> 55000 | G12: =MIN(F12:F12:F14) -> 45500
A13: =A5 -> Hire SBPR to market and distribute the product | B13: =MAX(B4:B6)-B5 -> 15000 | C13: =MAX(C4:C6)-C5 -> 10000 | D13: =MAX(D4:D6)-D5 -> 10000 | E13: =MAX(E4:E6)-E5 -> 45500 | F13: =MAX(B13:E13) -> 45500
A14: Market the product herself and sell on Amazon, | B14: =MAX(B4:B6)-B6 -> 0 | C14: =MAX(C4:C6)-C6 -> 0 | D14: =MAX(D4:D6)-D6 -> 5000 | E14: =MAX(E4:E6)-E6 -> 60000 | F14: 60000
A16: DM under Risk
A18: EVUII
B19: State of Nature
B20: =B11 -> Good Economy | C20: =C11 -> Moderate Economy | D20: Bad Economy | E20: =E11 -> Financial Crisis | F20: Expected Value
A21: Probability | B21: 0.3 | C21: 0.45 | D21: 0.2 | E21: 0.05
A22: =A12 -> Sell to another company | B22: =B4 -> 45000 | C22: =C4 -> 45000 | D22: 45000 | E22: 45000 | F22: =SUMPRODUCT(B22:E22*B21:E21) -> 45000
A23: =A13 -> Hire SBPR to market and distribute the product | B23: =B5 -> 85000 | C23: 60000 | D23: 35000 | E23: -500 | F23: =SUMPRODUCT(B23:E23*B21:E21) -> 59475
A24: Market the product herself and sell on Amazon, | B24: 100000 | C24: 70000 | D24: 40000 | E24: -15000 | F24: =SUMPRODUCT(B24:E24*B21:E21) -> 68750
A26: EVUPI
B27: State of Nature
B28: =B20 -> Good Economy | C28: =C20 -> Moderate Economy | D28: Bad Economy | E28: =E11 -> Financial Crisis | F28: Expected value
A29: Probability | B29: 0.3 | C29: 0.45 | D29: 0.2 | E29: 0.05
A30: Payoff | B30: =MAX(B4:B6) -> 100000 | C30: =MAX(C4:C6) -> 70000 | D30: 45000 | E30: 45000 | F30: =SUMPRODUCT(B30:E30*B29:E29) -> 72750
A32: EVPI | B32: =F30-F24 -> 4000
A34: EOL
A35: Regret Table | B35: State of Nature
A36: Decision Alternatives | B36: =B28 -> Good Economy | C36: =C28 -> Moderate Economy | D36: Bad Economy | E36: =E20 -> Financial Crisis | F36: EOL
A37: Probability | B37: 0.3 | C37: 0.45 | D37: 0.2 | E37: 0.05
A38: =A22 -> Sell to another company | B38: =B12 -> 55000 | C38: =C12 -> 25000 | D38: 0 | E38: 0 | F38: =SUMPRODUCT(B38:E38*B37:E37) -> 27750
A39: =A23 -> Hire SBPR to market and distribute the product | B39: =B13 -> 15000 | C39: 10000 | D39: 10000 | E39: 45500 | F39: =SUMPRODUCT(B39:E39*B37:E37) -> 13275
A40: Market the product herself and sell on Amazon, | B40: 0 | C40: 0 | D40: =D14 -> 5000 | E40: 60000 | F40: =SUMPRODUCT(B40:E40*B37:E37) -> 4000

Sheet Employee_data
A1: Age | B1: Department | C1: Education | D1: Gender | E1: HourlyRate | F1: Job Level | G1: JobRole | H1: Job Satisfaction | I1: Monthly Income | J1: PerformanceRating | K1: Total Working Years | L1: Years At Company | M1: Andrice
A2: 41 | B2: Human Resources | C2: 2 | D2: Female | E2: 94 | F2: 2 | G2: Healthcare Representative | H2: 4 | I2: 5993 | J2: 3 | K2: 8 | L2: 6 | M2: Spring 2020
A3: 49 | B3: Human Resources | C3: 1 | D3: Male | E3: 61 | F3: 2 | G3: Healthcare Representative | H3: 2 | I3: 5130 | J3: 4 | K3: 10 | L3: 10 | N3: number of years for R&D = | Q3: =SUM(L65:L1025) -> 6863
A4: 37 | B4: Human Resources | C4: 2 | D4: Male | E4: 92 | F4: 1 | G4: Healthcare Representative | H4: 3 | I4: 2090 | J4: 3 | K4: 7 | L4: 0
A5: 33 | B5: Human Resources | C5: 4 | D5: Female | E5: 56 | F5: 1 | G5: Healthcare Representative | H5: 3 | I5: 2909 | J5: 3 | K5: 8 | L5: 8
A6: 27 | B6: Human Resources | C6: 1 | D6: Male | E6: 40 | F6: 1 | G6: Healthcare Representative | H6: 2 | I6: 3468 | J6: 3 | K6: 6 | L6: 2 | O6: =MIN(E185:E443) -> 30
A7: 32 | B7: Human Resources | C7: 2 | D7: Male | E7: 79 | F7: 1 | G7: Healthcare Representative | H7: 4 | I7: 3068 | J7: 3 | K7: 8 | L7: 7
A8: 59 | B8: Human Resources | C8: 3 | D8: Female | E8: 81 | F8: 1 | G8: Healthcare Representative | H8: 1 | I8: 2670 | J8: 4 | K8: 12 | L8: 1
A9: 30 | B9: Human Resources | C9: 1 | D9: Male | E9: 67 | F9: 1 | G9: Healthcare Representative | H9: 3 | I9: 2693 | J9: 4 | K9: 1 | L9: 1
A10: 38 | B10: Human Resources | C10: 3 | D10: Male | E10: 44 | F10: 3 | G10: Healthcare Representative | H10: 3 | I10: 9526 | J10: 4 | K10: 10 | L10: 9
A11: 36 | B11: Human Resources | C11: 3 | D11: Male | E11: 94 | F11: 2 | G11: Healthcare Representative | H11: 3 | I11: 5237 | J11: 3 | K11: 17 | L11: 7
A12: 35 | B12: Human Resources | C12: 3 | D12: Male | E12: 84 | F12: 1 | G12: Healthcare Representative | H12: 2 | I12: 2426 | J12: 3 | K12: 6 | L12: 5
A13: 29 | B13: Human Resources | C13: 2 | D13: Female | E13: 49 | F13: 2 | G13: Healthcare Representative | H13: 3 | I13: 4193 | J13: 3 | K13: 10 | L13: 9
A14: 31 | B14: Human Resources | C14: 1 | D14: Male | E14: 31 | F14: 1 | G14: Healthcare Representative | H14: 3 | I14: 2911 | J14: 3 | K14: 5 | L14: 5
A15: 34 | B15: Human Resources | C15: 2 | D15: Male | E15: 93 | F15: 1 | G15: Healthcare Representative | H15: 4 | I15: 2661 | J15: 3 | K15: 3 | L15: 2
A16: 28 | B16: Human Resources | C16: 3 | D16: Male | E16: 50 | F16: 1 | G16: Healthcare Representative | H16: 3 | I16: 2028 | J16: 3 | K16: 6 | L16: 4
A17: 29 | B17: Human Resources | C17: 4 | D17: Female | E17: 51 | F17: 3 | G17: Healthcare Representative | H17: 1 | I17: 9980 | J17: 3 | K17: 10 | L17: 10
A18: 32 | B18: Human Resources | C18: 2 | D18: Male | E18: 80 | F18: 1 | G18: Healthcare Representative | H18: 2 | I18: 3298 | J18: 3 | K18: 7 | L18: 6
A19: 22 | B19: Human Resources | C19: 2 | D19: Male | E19: 96 | F19: 1 | G19: Healthcare Representative | H19: 4 | I19: 2935 | J19: 3 | K19: 1 | L19: 1
A20: 53 | B20: Human Resources | C20: 4 | D20: Female | E20: 78 | F20: 4 | G20: Healthcare Representative | H20: 4 | I20: 15427 | J20: 3 | K20: 31 | L20: 25
A21: 38 | B21: Human Resources | C21: 3 | D21: Male | E21: 45 | F21: 1 | G21: Healthcare Representative | H21: 4 | I21: 3944 | J21: 3 | K21: 6 | L21: 3
A22: 24 | B22: Human Resources | C22: 2 | D22: Female | E22: 96 | F22: 2 | G22: Healthcare Representative | H22: 3 | I22: 4011 | J22: 3 | K22: 5 | L22: 4
A23: 36 | B23: Human Resources | C23: 4 | D23: Male | E23: 82 | F23: 1 | G23: Healthcare Representative | H23: 1 | I23: 3407 | J23: 4 | K23: 10 | L23: 5
A24: 34 | B24: Human Resources | C24: 4 | D24: Female | E24: 53 | F24: 3 | G24: Healthcare Representative | H24: 2 | I24: 11994 | J24: 3 | K24: 13 | L24: 12
A25: 21 | B25: Human Resources | C25: 2 | D25: Male | E25: 96 | F25: 1 | G25: Healthcare Representative | H25: 4 | I25: 1232 | J25: 3 | K25: 0 | L25: 0
A26: 34 | B26: Human Resources | C26: 1 | D26: Male | E26: 83 | F26: 1 | G26: Healthcare Representative | H26: 1 | I26: 2960 | J26: 3 | K26: 8 | L26: 4
A27: 53 | B27: Human Resources | C27: 3 | D27: Female | E27: 58 | F27: 5 | G27: Healthcare Representative | H27: 3 | I27: 19094 | J27: 3 | K27: 26 | L27: 14
A28: 32 | B28: Human Resources | C28: 1 | D28: Female | E28: 72 | F28: 1 | G28: Healthcare Representative | H28: 1 | I28: 3919 | J28: 4 | K28: 10 | L28: 10 | O28: =AVERAGE(I185:I443) -> 6972.444015
A29: 42 | B29: Human Resources | C29: 4 | D29: Male | E29: 48 | F29: 2 | G29: Healthcare Representative | H29: 2 | I29: 6825 | J29: 3 | K29: 10 | L29: 9
A30: 44 | B30: Human Resources | C30: 4 | D30: Female | E30: 42 | F30: 3 | G30: Healthcare Representative | H30: 4 | I30: 10248 | J30: 3 | K30: 24 | L30: 22
A31: 46 | B31: Human Resources | C31: 4 | D31: Female | E31: 83 | F31: 5 | G31: Healthcare Representative | H31: 1 | I31: 18947 | J31: 3 | K31: 22 | L31: 2
A32: 33 | B32: Human Resources | C32: 3 | D32: Male | E32: 78 | F32: 1 | G32: Healthcare Representative | H32: 4 | I32: 2496 | J32: 3 | K32: 7 | L32: 1
A33: 44 | B33: Human Resources | C33: 4 | D33: Male | E33: 41 | F33: 2 | G33: Healthcare Representative | H33: 4 | I33: 6465 | J33: 3 | K33: 9 | L33: 4
A34: 30 | B34: Human Resources | C34: 2 | D34: Male | E34: 83 | F34: 1 | G34: Healthcare Representative | H34: 3 | I34: 2206 | J34: 3 | K34: 10 | L34: 10
A35: 39 | B35: Human Resources | C35: 3 | D35: Male | E35: 56 | F35: 2 | G35: Healthcare Representative | H35: 4 | I35: 2086 | J35: 3 | K35: 19 | L35: 1
A36: 24 | B36: Human Resources | C36: 3 | D36: Male | E36: 61 | F36: 1 | G36: Healthcare Representative | H36: 4 | I36: 2293 | J36: 3 | K36: 6 | L36: 2
A37: 43 | B37: Human Resources | C37: 2 | D37: Female | E37: 72 | F37: 1 | G37: Healthcare Representative | H37: 3 | I37: 2645 | J37: 3 | K37: 6 | L37: 5
A38: 50 | B38: Human Resources | C38: 2 | D38: Male | E38: 86 | F38: 1 | G38: Healthcare Representative | H38: 3 | I38: 2683 | J38: 3 | K38: 3 | L38: 3
A39: 35 | B39: Human Resources | C39: 3 | D39: Female | E39: 97 | F39: 1 | G39: Healthcare Representative | H39: 4 | I39: 2014 | J39: 3 | K39: 2 | L39: 2
A40: 36 | B40: Human Resources | C40: 4 | D40: Female | E40: 82 | F40: 1 | G40: Healthcare Representative | H40: 1 | I40: 3419 | J40: 3 | K40: 6 | L40: 1
A41: 33 | B41: Human Resources | C41: 3 | D41: Female | E41: 42 | F41: 2 | G41: Healthcare Representative | H41: 1 | I41: 5376 | J41: 3 | K41: 10 | L41: 5
A42: 35 | B42: Human Resources | C42: 2 | D42: Male | E42: 75 | F42: 1 | G42: Healthcare Representative | H42: 4 | I42: 1951 | J42: 3 | K42: 1 | L42: 1
A43: 27 | B43: Human Resources | C43: 4 | D43: Female | E43: 33 | F43: 1 | G43: Healthcare Representative | H43: 1 | I43: 2341 | J43: 3 | K43: 1 | L43: 1
A44: 26 | B44: Human Resources | C44: 3 | D44: Male | E44: 48 | F44: 1 | G44: Healthcare Representative | H44: 3 | I44: 2293 | J44: 3 | K44: 1 | L44: 1
A45: 27 | B45: Human Resources | C45: 3 | D45: Male | E45: 37 | F45: 3 | G45: Healthcare Representative | H45: 3 | I45: 8726 | J45: 3 | K45: 9 | L45: 9
A46: 30 | B46: Human Resources | C46: 2 | D46: Female | E46: 58 | F46: 2 | G46: Healthcare Representative | H46: 4 | I46: 4011 | J46: 4 | K46: 12 | L46: 12
A47: 41 | B47: Human Resources | C47: 3 | D47: Female | E47: 49 | F47: 5 | G47: Healthcare Representative | H47: 3 | I47: 19545 | J47: 3 | K47: 23 | L47: 22
A48: 34 | B48: Human Resources | C48: 4 | D48: Male | E48: 72 | F48: 2 | G48: Healthcare Representative | H48: 3 | I48: 4568 | J48: 4 | K48: 10 | L48: 9
A49: 37 | B49: Human Resources | C49: 2 | D49: Male | E49: 73 | F49: 1 | G49: Healthcare Representative | H49: 2 | I49: 3022 | J49: 4 | K49: 8 | L49: 1
A50: 46 | B50: Human Resources | C50: 4 | D50: Male | E50: 98 | F50: 2 | G50: Healthcare Representative | H50: 4 | I50: 5772 | J50: 4 | K50: 14 | L50: 9
A51: 35 | B51: Human Resources | C51: 1 | D51: Male | E51: 36 | F51: 1 | G51: Healthcare Representative | H51: 4 | I51: 2269 | J51: 3 | K51: 1 | L51: 1
A52: 48 | B52: Human Resources | C52: 2 | D52: Male | E52: 98 | F52: 3 | G52: Healthcare Representative | H52: 3 | I52: 5381 | J52: 3 | K52: 23 | L52: 1
A53: 28 | B53: Human Resources | C53: 4 | D53: Male | E53: 50 | F53: 1 | G53: Healthcare Representative | H53: 3 | I53: 3441 | J53: 3 | K53: 2 | L53: 2
A54: 44 | B54: Human Resources | C54: 5 | D54: Female | E54: 75 | F54: 2 | G54: Healthcare Representative | H54: 1 | I54: 5454 | J54: 4 | K54: 9 | L54: 4
A55: 35 | B55: Human Resources | C55: 2 | D55: Male | E55: 79 | F55: 3 | G55: Healthcare Representative | H55: 1 | I55: 9884 | J55: 3 | K55: 10 | L55: 4
A56: 26 | B56: Human Resources | C56: 3 | D56: Female | E56: 47 | F56: 2 | G56: Healthcare Representative | H56: 4 | I56: 4157 | J56: 3 | K56: 5 | L56: 2
A57: 33 | B57: Human Resources | C57: 2 | D57: Female | E57: 98 | F57: 3 | G57: Healthcare Representative | H57: 4 | I57: 13458 | J57: 3 | K57: 15 | L57: 15
A58: 35 | B58: Human Resources | C58: 5 | D58: Male | E58: 71 | F58: 3 | G58: Healthcare Representative | H58: 1 | I58: 9069 | J58: 4 | K58: 9 | L58: 9
A59: 35 | B59: Human Resources | C59: 4 | D59: Female | E59: 30 | F59: 1 | G59: Healthcare Representative | H59: 1 | I59: 4014 | J59: 3 | K59: 4 | L59: 2
A60: 31 | B60: Human Resources | C60: 4 | D60: Male | E60: 48 | F60: 2 | G60: Healthcare Representative | H60: 4 | I60: 5915 | J60: 4 | K60: 10 | L60: 7
A61: 37 | B61: Human Resources | C61: 4 | D61: Male | E61: 51 | F61: 2 | G61: Healthcare Representative | H61: 3 | I61: 5993 | J61: 3 | K61: 7 | L61: 7
A62: 32 | B62: Human Resources | C62: 3 | D62: Male | E62: 33 | F62: 2 | G62: Healthcare Representative | H62: 4 | I62: 6162 | J62: 4 | K62: 9 | L62: 9
A63: 38 | B63: Human Resources | C63: 5 | D63: Female | E63: 50 | F63: 2 | G63: Healthcare Representative | H63: 4 | I63: 2406 | J63: 3 | K63: 10 | L63: 10
A64: 50 | B64: Human Resources | C64: 2 | D64: Female | E64: 43 | F64: 5 | G64: Healthcare Representative | H64: 3 | I64: 18740 | J64: 3 | K64: 29 | L64: 27 | O64: =MAX(L65:L1025) -> 40
A65: 59 | B65: Research & Development | C65: 3 | D65: Female | E65: 99 | F65: 3 | G65: Healthcare Representative | H65: 1 | I65: 7637 | J65: 3 | K65: 28 | L65: 21
A66: 36 | B66: Research & Development | C66: 3 | D66: Female | E66: 59 | F66: 3 | G66: Healthcare Representative | H66: 3 | I66: 10096 | J66: 3 | K66: 17 | L66: 17
A67: 55 | B67: Research & Development | C67: 3 | D67: Female | E67: 33 | F67: 4 | G67: Healthcare Representative | H67: 3 | I67: 14756 | J67: 3 | K67: 21 | L67: 5
A68: 36 | B68: Research & Development | C68: 3 | D68: Male | E68: 95 | F68: 2 | G68: Healthcare Representative | H68: 2 | I68: 6499 | J68: 3 | K68: 6 | L68: 6
A69: 45 | B69: Research & Development | C69: 3 | D69: Male | E69: 59 | F69: 3 | G69: Healthcare Representative | H69: 1 | I69: 9724 | J69: 3 | K69: 25 | L69: 1
A70: 35 | B70: Research & Development | C70: 3 | D70: Male | E70: 79 | F70: 1 | G70: Healthcare Representative | H70: 1 | I70: 2194 | J70: 3 | K70: 5 | L70: 3
A71: 36 | B71: Research & Development | C71: 3 | D71: Male | E71: 79 | F71: 1 | G71: Healthcare Representative | H71: 3 | I71: 3388 | J71: 3 | K71: 2 | L71: 1
A72: 59 | B72: Research & Development | C72: 1 | D72: Female | E72: 57 | F72: 2 | G72: Healthcare Representative | H72: 3 | I72: 5473 | J72: 3 | K72: 20 | L72: 4
A73: 29 | B73: Research & Development | C73: 3 | D73: Male | E73: 76 | F73: 1 | G73: Healthcare Representative | H73: 2 | I73: 2703 | J73: 4 | K73: 6 | L73: 5
A74: 31 | B74: Research & Development | C74: 4 | D74: Male | E74: 87 | F74: 1 | G74: Healthcare Representative | H74: 2 | I74: 2501 | J74: 3 | K74: 1 | L74: 1
A75: 32 | B75: Research & Development | C75: 3 | D75: Male | E75: 66 | F75: 2 | G75: Healthcare Representative | H75: 2 | I75: 6220 | J75: 3 | K75: 10 | L75: 10
A76: 36 | B76: Research & Development | C76: 3 | D76: Female | E76: 55 | F76: 1 | G76: Healthcare Representative | H76: 4 | I76: 3038 | J76: 3 | K76: 5 | L76: 1
A77: 31 | B77: Research & Development | C77: 4 | D77: Female | E77: 61 | F77: 2 | G77: Healthcare Representative | H77: 4 | I77: 4424 | J77: 4 | K77: 11 | L77: 11
A78: 35 | B78: Research & Development | C78: 4 | D78: Male | E78: 32 | F78: 2 | G78: Healthcare Representative | H78: 1 | I78: 4312 | J78: 3 | K78: 16 | L78: 15
A79: 45 | B79: Research & Development | C79: 4 | D79: Male | E79: 52 | F79: 3 | G79: Healthcare Representative | H79: 1 | I79: 13245 | J79: 3 | K79: 17 | L79: 0
A80: 37 | B80: Research & Development | C80: 4 | D80: Male | E80: 30 | F80: 3 | G80: Healthcare Representative | H80: 3 | I80: 13664 | J80: 3 | K80: 16 | L80: 5
A81: 46 | B81: Research & Development | C81: 2 | D81: Male | E81: 80 | F81: 2 | G81: Healthcare Representative | H81: 2 | I81: 5021 | J81: 4 | K81: 16 | L81: 4
A82: 30 | B82: Research & Development | C82: 1 | D82: Male | E82: 55 | F82: 2 | G82: Healthcare Representative | H82: 4 | I82: 5126 | J82: 3 | K82: 10 | L82: 10
A83: 35 | B83: Research & Development | C83: 3 | D83: Male | E83: 30 | F83: 1 | G83: Healthcare Representative | H83: 3 | I83: 2859 | J83: 3 | K83: 6 | L83: 6
A84: 55 | B84: Research & Development | C84: 2 | D84: Male | E84: 70 | F84: 3 | G84: Healthcare Representative | H84: 4 | I84: 10239 | J84: 3 | K84: 24 | L84: 1
A85: 38 | B85: Research & Development | C85: 3 | D85: Female | E85: 79 | F85: 2 | G85: Healthcare Representative | H85: 4 | I85: 5329 | J85: 3 | K85: 17 | L85: 13
A86: 34 | B86: Research & Development | C86: 2 | D86: Male | E86: 94 | F86: 2 | G86: Healthcare Representative | H86: 2 | I86: 4325 | J86: 3 | K86: 5 | L86: 5
A87: 56 | B87: Research & Development | C87: 3 | D87: Male | E87: 49 | F87: 3 | G87: Healthcare Representative | H87: 4 | I87: 7260 | J87: 3 | K87: 37 | L87: 6
A88: 23 | B88: Research & Development | C88: 1 | D88: Male | E88: 62 | F88: 1 | G88: Healthcare Representative | H88: 1 | I88: 2322 | J88: 3 | K88: 3 | L88: 0
A89: 51 | B89: Research & Development | C89: 4 | D89: Male | E89: 96 | F89: 1 | G89: Healthcare Representative | H89: 4 | I89: 2075 | J89: 4 | K89: 10 | L89: 4
A90: 30 | B90: Research & Development | C90: 3 | D90: Male | E90: 99 | F90: 2 | G90: Healthcare Representative | H90: 4 | I90: 4152 | J90: 3 | K90: 11 | L90: 11
A91: 46 | B91: Research & Development | C91: 2 | D91: Male | E91: 64 | F91: 3 | G91: Healthcare Representative | H91: 4 | I91: 9619 | J91: 3 | K91: 9 | L91: 9
A92: 40 | B92: Research & Development | C92: 4 | D92: Male | E92: 78 | F92: 4 | G92: Healthcare Representative | H92: 2 | I92: 13503 | J92: 4 | K92: 22 | L92: 22
A93: 51 | B93: Research & Development | C93: 4 | D93: Male | E93: 71 | F93: 2 | G93: Healthcare Representative | H93: 4 | I93: 5441 | J93: 4 | K93: 11 | L93: 10
A94: 30 | B94: Research & Development | C94: 2 | D94: Female | E94: 63 | F94: 2 | G94: Healthcare Representative | H94: 2 | I94: 5209 | J94: 3 | K94: 11 | L94: 11
A95: 46 | B95: Research & Development | C95: 3 | D95: Male | E95: 40 | F95: 3 | G95: Healthcare Representative | H95: 1 | I95: 10673 | J95: 3 | K95: 21 | L95: 10
A96: 32 | B96: Research & Development | C96: 4 | D96: Male | E96: 87 | F96: 2 | G96: Healthcare Representative | H96: 3 | I96: 5010 | J96: 3 | K96: 12 | L96: 11
A97: 54 | B97: Research & Development | C97: 4 | D97: Female | E97: 60 | F97: 3 | G97: Healthcare Representative | H97: 3 | I97: 13549 | J97: 3 | K97: 16 | L97: 4
A98: 24 | B98: Research & Development | C98: 2 | D98: Female | E98: 33 | F98: 2 | G98: Healthcare Representative | H98: 3 | I98: 4999 | J98: 4 | K98: 4 | L98: 3
A99: 28 | B99: Research & Development | C99: 3 | D99: Male | E99: 43 | F99: 2 | G99: Healthcare Representative | H99: 3 | I99: 4221 | J99: 3 | K99: 5 | L99: 5
A100: 58 | B100: Research & Development | C100: 4 | D100: Male | E100: 37 | F100: 4 | G100: Healthcare Representative | H100: 3 | I100: 13872 | J100: 3 | K100: 38 | L100: 37
A101: 44 | B101: Research & Development | C101: 3 | D101: Male | E101: 67 | F101: 2 | G101: Healthcare Representative | H101: 2 | I101: 2042 | J101: 3 | K101: 17 | L101: 3
A102: 37 | B102: Research & Development | C102: 4 | D102: Male | E102: 63 | F102: 1 | G102: Healthcare Representative | H102: 1 | I102: 2073 | J102: 4 | K102: 7 | L102: 3
A103: 32 | B103: Research & Development | C103: 1 | D103: Male | E103: 71 | F103: 1 | G103: Healthcare Representative | H103: 1 | I103: 2956 | J103: 3 | K103: 1 | L103: 1
A104: 20 | B104: Research & Development | C104: 3 | D104: Female | E104: 66 | F104: 1 | G104: Healthcare Representative | H104: 4 | I104: 2926 | J104: 3 | K104: 1 | L104: 1
A105: 34 | B105: Research & Development | C105: 4 | D105: Female | E105: 41 | F105: 2 | G105: Healthcare Representative | H105: 3 | I105: 4809 | J105: 3 | K105: 16 | L105: 16
A106: 37 | B106: Research & Development | C106: 2 | D106: Male | E106: 100 | F106: 2 | G106: Healthcare Representative | H106: 4 | I106: 5163 | J106: 3 | K106: 17 | L106: 1
A107: 59 | B107: Research & Development | C107: 4 | D107: Female | E107: 32 | F107: 5 | G107: Healthcare Representative | H107: 4 | I107: 18844 | J107: 4 | K107: 30 | L107: 3
A108: 50 | B108: Research & Development | C108: 3 | D108: Female | E108: 73 | F108: 5 | G108: Healthcare Representative | H108: 2 | I108: 18172 | J108: 3 | K108: 28 | L108: 8
A109: 25 | B109: Research & Development | C109: 3 | D109: Male | E109: 46 | F109: 2 | G109: Healthcare Representative | H109: 3 | I109: 5744 | J109: 3 | K109: 6 | L109: 6
A110: 25 | B110: Research & Development | C110: 1 | D110: Male | E110: 64 | F110: 1 | G110: Healthcare Representative | H110: 4 | I110: 2889 | J110: 3 | K110: 2 | L110: 2
A111: 22 | B111: Research & Development | C111: 3 | D111: Female | E111: 59 | F111: 1 | G111: Healthcare Representative | H111: 4 | I111: 2871 | J111: 3 | K111: 1 | L111: 0
A112: 51 | B112: Research & Development | C112: 4 | D112: Female | E112: 30 | F112: 3 | G112: Healthcare Representative | H112: 1 | I112: 7484 | J112: 4 | K112: 23 | L112: 13
A113: 34 | B113: Research & Development | C113: 3 | D113: Male | E113: 66 | F113: 2 | G113: Healthcare Representative | H113: 3 | I113: 6074 | J113: 4 | K113: 9 | L113: 9
A114: 54 | B114: Research & Development | C114: 3 | D114: Female | E114: 30 | F114: 4 | G114: Healthcare Representative | H114: 4 | I114: 17328 | J114: 3 | K114: 23 | L114: 5
A115: 24 | B115: Research & Development | C115: 1 | D115: Male | E115: 52 | F115: 1 | G115: Healthcare Representative | H115: 3 | I115: 2774 | J115: 3 | K115: 6 | L115: 5
A116: 34 | B116: Research & Development | C116: 4 | D116: Female | E116: 45 | F116: 2 | G116: Healthcare Representative | H116: 2 | I116: 4505 | J116: 3 | K116: 12 | L116: 1
A117: 37 | B117: Research & Development | C117: 3 | D117: Male | E117: 87 | F117: 3 | G117: Healthcare Representative | H117: 4 | I117: 7428 | J117: 3 | K117: 12 | L117: 5
A118: 34 | B118: Research & Development | C118: 3 | D118: Female | E118: 45 | F118: 3 | G118: Healthcare Representative | H118: 1 | I118: 11631 | J118: 3 | K118: 14 | L118: 11
A119: 36 | B119: Research & Development | C119: 2 | D119: Female | E119: 92 | F119: 3 | G119: Healthcare Representative | H119: 4 | I119: 9738 | J119: 3 | K119: 10 | L119: 9
A120: 36 | B120: Research & Development | C120: 2 | D120: Female | E120: 39 | F120: 1 | G120: Healthcare Representative | H120: 4 | I120: 2835 | J120: 4 | K120: 7 | L120: 1
A121: 43 | B121: Research & Development | C121: 2 | D121: Male | E121: 92 | F121: 4 | G121: Healthcare Representative | H121: 4 | I121: 16959 | J121: 3 | K121: 25 | L121: 25
A122: 30 | B122: Research & Development | C122: 3 | D122: Male | E122: 96 | F122: 1 | G122: Healthcare Representative | H122: 3 | I122: 2613 | J122: 4 | K122: 10 | L122: 10
A123: 33 | B123: Research & Development | C123: 2 | D123: Male | E123: 95 | F123: 2 | G123: Healthcare Representative | H123: 2 | I123: 6146 | J123: 3 | K123: 8 | L123: 7
A124: 56 | B124: Research & Development | C124: 4 | D124: Female | E124: 72 | F124: 1 | G124: Healthcare Representative | H124: 2 | I124: 4963 | J124: 3 | K124: 7 | L124: 5
A125: 51 | B125: Research & Development | C125: 3 | D125: Male | E125: 51 | F125: 5 | G125: Healthcare Representative | H125: 3 | I125: 19537 | J125: 3 | K125: 23 | L125: 20
A126: 31 | B126: Research & Development | C126: 4 | D126: Male | E126: 76 | F126: 2 | G126: Healthcare Representative | H126: 3 | I126: 6172 | J126: 3 | K126: 12 | L126: 7
A127: 26 | B127: Research & Development | C127: 3 | D127: Female | E127: 46 | F127: 1 | G127: Healthcare Representative | H127: 2 | I127: 2368 | J127: 3 | K127: 5 | L127: 5
A128: 58 | B128: Research & Development | C128: 4 | D128: Female | E128: 94 | F128: 3 | G128: Healthcare Representative | H128: 4 | I128: 10312 | J128: 3 | K128: 40 | L128: 40
A129: 19 | B129: Research & Development | C129: 1 | D129: Male | E129: 50 | F129: 1 | G129: Healthcare Representative | H129: 3 | I129: 1675 | J129: 3 | K129: 0 | L129: 0
A130: 22 | B130: Research & Development | C130: 1 | D130: Male | E130: 100 | F130: 1 | G130: Healthcare Representative | H130: 4 | I130: 2523 | J130: 3 | K130: 3 | L130: 2
A131: 49 | B131: Research & Development | C131: 4 | D131: Female | E131: 96 | F131: 2 | G131: Healthcare Representative | H131: 1 | I131: 6567 | J131: 3 | K131: 16 | L131: 15
A132: 43 | B132: Research & Development | C132: 3 | D132: Female | E132: 72 | F132: 1 | G132: Healthcare Representative | H132: 3 | I132: 4739 | J132: 3 | K132: 18 | L132: 3
A133: 50 | B133: Research & Development | C133: 3 | D133: Female | E133: 77 | F133: 3 | G133: Human Resources | H133: 4 | I133: 9208 | J133: 3 | K133: 16 | L133: 2
A134: 31 | B134: Research & Development | C134: 3 | D134: Female | E134: 71 | F134: 2 | G134: Human Resources | H134: 3 | I134: 4559 | J134: 3 | K134: 4 | L134: 2
A135: 41 | B135: Research & Development | C135: 1 | D135: Male | E135: 96 | F135: 3 | G135: Human Resources | H135: 3 | I135: 8189 | J135: 3 | K135: 12 | L135: 9
A136: 26 | B136: Research & Development | C136: 1 | D136: Female | E136: 61 | F136: 1 | G136: Human Resources | H136: 3 | I136: 2942 | J136: 4 | K136: 8 | L136: 8
A137: 36 | B137: Research & Development | C137: 2 | D137: Male | E137: 84 | F137: 2 | G137: Human Resources | H137: 2 | I137: 4941 | J137: 4 | K137: 7 | L137: 3
A138: 51 | B138: Research & Development | C138: 4 | D138: Male | E138: 53 | F138: 3 | G138: Human Resources | H138: 4 | I138: 10650 | J138: 3 | K138: 18 | L138: 4
A139: 39 | B139: Research & Development | C139: 4 | D139: Female | E139: 47 | F139: 2 | G139: Human Resources | H139: 3 | I139: 5902 | J139: 3 | K139: 17 | L139: 15
A140: 25 | B140: Research & Development | C140: 3 | D140: Male | E140: 41 | F140: 2 | G140: Human Resources | H140: 3 | I140: 8639 | J140: 3 | K140: 6 | L140: 2
A141: 30 | B141: Research & Development | C141: 3 | D141: Male | E141: 48 | F141: 2 | G141: Human Resources | H141: 4 | I141: 6347 | J141: 3 | K141: 12 | L141: 11
A142: 32 | B142: Research & Development | C142: 3 | D142: Female | E142: 41 | F142: 1 | G142: Human Resources | H142: 1 | I142: 4200 | J142: 4 | K142: 10 | L142: 5
A143: 45 | B143: Research & Development | C143: 3 | D143: Male | E143: 83 | F143: 1 | G143: Human Resources | H143: 4 | I143: 3452 | J143: 3 | K143: 9 | L143: 6
A144: 38 | B144: Research & Development | C144: 5 | D144: Female | E144: 32 | F144: 2 | G144: Human Resources | H144: 3 | I144: 4317 | J144: 4 | K144: 19 | L144: 3
A145: 30 | B145: Research & Development | C145: 3 | D145: Female | E145: 75 | F145: 1 | G145: Human Resources | H145: 3 | I145: 2632 | J145: 3 | K145: 5 | L145: 5
A146: 32 | B146: Research & Development | C146: 2 | D146: Male | E146: 35 | F146: 2 | G146: Human Resources | H146: 4 | I146: 4668 | J146: 3 | K146: 9 | L146: 8
A147: 30 | B147: Research & Development | C147: 3 | D147: Female | E147: 84 | F147: 1 | G147: Human Resources | H147: 1 | I147: 3204 | J147: 3 | K147: 8 | L147: 3
A148: 30 | B148: Research & Development | C148: 1 | D148: Male | E148: 35 | F148: 1 | G148: Human Resources | H148: 4 | I148: 2720 | J148: 3 | K148: 6 | L148: 5
A149: 41 | B149: Research & Development | C149: 3 | D149: Male | E149: 91 | F149: 4 | G149: Human Resources | H149: 1 | I149: 17181 | J149: 3 | K149: 21 | L149: 7
A150: 41 | B150: Research & Development | C150: 4 | D150: Male | E150: 94 | F150: 1 | G150: Human Resources | H150: 1 | I150: 2238 | J150: 4 | K150: 7 | L150: 5
A151: 19 | B151: Research & Development | C151: 1 | D151: Female | E151: 79 | F151: 1 | G151: Human Resources | H151: 2 | I151: 1483 | J151: 3 | K151: 1 | L151: 1
A152: 40 | B152: Research & Development | C152: 3 | D152: Female | E152: 54 | F152: 2 | G152: Human Resources | H152: 2 | I152: 5605 | J152: 3 | K152: 20 | L152: 20
A153: 35 | B153: Research & Development | C153: 5 | D153: Male | E153: 94 | F153: 3 | G153: Human Resources | H153: 2 | I153: 7295 | J153: 3 | K153: 10 | L153: 10
A154: 53 | B154: Research & Development | C154: 2 | D154: Male | E154: 34 | F154: 2 | G154: Human Resources | H154: 3 | I154: 2306 | J154: 4 | K154: 13 | L154: 7
A155: 45 | B155: Research & Development | C155: 3 | D155: Male | E155: 60 | F155: 2 | G155: Human Resources | H155: 2 | I155: 2348 | J155: 3 | K155: 20 | L155: 17
A156: 32 | B156: Research & Development | C156: 3 | D156: Female | E156: 43 | F156: 3 | G156: Human Resources | H156: 4 | I156: 8998 | J156: 3 | K156: 9 | L156: 9
A157: 29 | B157: Research & Development | C157: 1 | D157: Male | E157: 41 | F157: 2 | G157: Human Resources | H157: 3 | I157: 4319 | J157: 3 | K157: 10 | L157: 10
A158: 51 | B158: Research & Development | C158: 4 | D158: Male | E158: 34 | F158: 2 | G158: Human Resources | H158: 3 | I158: 6132 | J158: 3 | K158: 10 | L158: 1
A159: 58 | B159: Research & Development | C159: 3 | D159: Female | E159: 75 | F159: 1 | G159: Human Resources | H159: 2 | I159: 3346 | J159: 4 | K159: 9 | L159: 1
A160: 40 | B160: Research & Development | C160: 4 | D160: Male | E160: 67 | F160: 3 | G160: Human Resources | H160: 4 | I160: 10855 | J160: 3 | K160: 15 | L160: 12
A161: 34 | B161: Research & Development | C161: 4 | D161: Female | E161: 75 | F161: 1 | G161: Human Resources | H161: 3 | I161: 2231 | J161: 3 | K161: 6 | L161: 4
A162: 22 | B162: Research & Development | C162: 1 | D162: Male | E162: 80 | F162: 1 | G162: Human Resources | H162: 4 | I162: 2323 | J162: 4 | K162: 2 | L162: 2
A163: 27 | B163: Research & Development | C163: 3 | D163: Male | E163: 57 | F163: 1 | G163: Human Resources | H163: 2 | I163: 2024 | J163: 3 | K163: 6 | L163: 2
A164: 28 | B164: Research & Development | C164: 3 | D164: Male | E164: 42 | F164: 1 | G164: Human Resources | H164: 4 | I164: 2713 | J164: 3 | K164: 5 | L164: 5
A165: 57 | B165: Research & Development | C165: 2 | D165: Male | E165: 83 | F165: 3 | G165: Human Resources | H165: 4 | I165: 9439 | J165: 3 | K165: 12 | L165: 5
A166: 27 | B166: Research & Development | C166: 3 | D166: Male | E166: 79 | F166: 1 | G166: Human Resources | H166: 3 | I166: 2566 | J166: 3 | K166: 1 | L166: 1
A167: 50 | B167: Research & Development | C167: 3 | D167: Female | E167: 53 | F167: 5 | G167: Human Resources | H167: 2 | I167: 19926 | J167: 3 | K167: 21 | L167: 5
A168: 41 | B168: Research & Development | C168: 3 | D168: Male | E168: 56 | F168: 1 | G168: Human Resources | H168: 3 | I168: 2451 | J168: 3 | K168: 13 | L168: 9
A169: 30 | B169: Research & Development | C169: 3 | D169: Female | E169: 41 | F169: 3 | G169: Human Resources | H169: 4 | I169: 9419 | J169: 3 | K169: 12 | L169: 10
A170: 38 | B170: Research & Development | C170: 4 | D170: Female | E170: 59 | F170: 2 | G170: Human Resources | H170: 4 | I170: 8686 | J170: 4 | K170: 12 | L170: 8
A171: 32 | B171: Research & Development | C171: 5 | D171: Male | E171: 43 | F171: 1 | G171: Human Resources | H171: 3 | I171: 3038 | J171: 4 | K171: 8 | L171: 5
A172: 27 | B172: Research & Development | C172: 3 | D172: Male | E172: 51 | F172: 1 | G172: Human Resources | H172: 2 | I172: 3058 | J172: 3 | K172: 6 | L172: 5
A173: 19 | B173: Research & Development | C173: 1 | D173: Female | E173: 100 | F173: 1 | G173: Human Resources | H173: 1 | I173: 2325 | J173: 4 | K173: 1 | L173: 0
A174: 36 | B174: Research & Development | C174: 2 | D174: Male | E174: 30 | F174: 1 | G174: Human Resources | H174: 2 | I174: 2088 | J174: 3 | K174: 13 | L174: 8
A175: 30 | B175: Research & Development | C175: 3 | D175: Male | E175: 66 | F175: 2 | G175: Human Resources | H175: 1 | I175: 3072 | J175: 3 | K175: 12 | L175: 12
A176: 45 | B176: Research & Development | C176: 2 | D176: Female | E176: 30 | F176: 2 | G176: Human Resources | H176: 1 | I176: 5006 | J176: 3 | K176: 9 | L176: 5
A177: 56 | B177: Research & Development | C177: 3 | D177: Female | E177: 67 | F177: 1 | G177: Human Resources | H177: 1 | I177: 4257 | J177: 3 | K177: 19 | L177: 2
A178: 33 | B178: Research & Development | C178: 3 | D178: Male | E178: 90 | F178: 1 | G178: Human Resources | H178: 4 | I178: 2500 | J178: 3 | K178: 4 | L178: 3
A179: 19 | B179: Research & Development | C179: 3 | D179: Male | E179: 47 | F179: 1 | G179: Human Resources | H179: 4 | I179: 1102 | J179: 4 | K179: 1 | L179: 1
A180: 46 | B180: Research & Development | C180: 2 | D180: Female | E180: 92 | F180: 3 | G180: Human Resources | H180: 1 | I180: 10453 | J180: 4 | K180: 24 | L180: 24
A181: 38 | B181: Research & Development | C181: 2 | D181: Female | E181: 75 | F181: 1 | G181: Human Resources | H181: 4 | I181: 2288 | J181: 3 | K181: 2 | L181: 2
A182: 31 | B182: Research & Development | C182: 1 | D182: Female | E182: 95 | F182: 1 | G182: Human Resources | H182: 4 | I182: 3929 | J182: 4 | K182: 7 | L182: 4
A183: 34 | B183: Research & Development | C183: 2 | D183: Female | E183: 95 | F183: 1 | G183: Human Resources | H183: 2 | I183: 2311 | J183: 3 | K183: 9 | L183: 3
A184: 41 | B184: Research & Development | C184: 2 | D184: Female | E184: 70 | F184: 1 | G184: Human Resources | H184: 2 | I184: 3140 | J184: 4 | K184: 4 | L184: 4
A185: 50 | B185: Research & Development | C185: 3 | D185: Male | E185: 86 | F185: 1 | G185: Laboratory Technician | H185: 3 | I185: 3690 | J185: 3 | K185: 5 | L185: 3
A186: 53 | B186: Research & Development | C186: 2 | D186: Female | E186: 57 | F186: 2 | G186: Laboratory Technician | H186: 1 | I186: 4450 | J186: 3 | K186: 5 | L186: 4
A187: 33 | B187: Research & Development | C187: 3 | D187: Female | E187: 72 | F187: 1 | G187: Laboratory Technician | H187: 2 | I187: 2756 | J187: 3 | K187: 8 | L187: 8
A188: 40 | B188: Research & Development | C188: 1 | D188: Female | E188: 46 | F188: 5 | G188: Laboratory Technician | H188: 3 | I188: 19033 | J188: 3 | K188: 21 | L188: 20
A189: 55 | B189: Research & Development | C189: 4 | D189: Male | E189: 61 | F189: 5 | G189: Laboratory Technician | H189: 2 | I189: 18722 | J189: 3 | K189: 36 | L189: 24
A190: 34 | B190: Research & Development | C190: 1 | D190: Male | E190: 45 | F190: 2 | G190: Laboratory Technician | H190: 3 | I190: 9547 | J190: 3 | K190: 10 | L190: 10
A191: 51 | B191: Research & Development | C191: 3 | D191: Female | E191: 98 | F191: 4 | G191: Laboratory Technician | H191: 2 | I191: 13734 | J191: 3 | K191: 21 | L191: 7
A192: 52 | B192: Research & Development | C192: 4 | D192: Male | E192: 65 | F192: 5 | G192: Laboratory Technician | H192: 3 | I192: 19999 | J192: 3 | K192: 34 | L192: 33
A193: 27 | B193: Research & Development | C193: 3 | D193: Female | E193: 99 | F193: 1 | G193: Laboratory Technician | H193: 2 | I193: 2279 | J193: 3 | K193: 7 | L193: 7
A194: 35 | B194: Research & Development | C194: 2 | D194: Male | E194: 50 | F194: 2 | G194: Laboratory Technician | H194: 3 | I194: 5916 | J194: 3 | K194: 8 | L194: 1
A195: 43 | B195: Research & Development | C195: 3 | D195: Male | E195: 37 | F195: 1 | G195: Laboratory Technician | H195: 4 | I195: 2089 | J195: 3 | K195: 7 | L195: 5
A196: 45 | B196: Research & Development | C196: 2 | D196: Male | E196: 65 | F196: 4 | G196: Laboratory Technician | H196: 4 | I196: 16792 | J196: 4 | K196: 22 | L196: 20
A197: 37 | B197: Research & Development | C197: 3 | D197: Male | E197: 65 | F197: 1 | G197: Laboratory Technician | H197: 1 | I197: 3564 | J197: 3 | K197: 8 | L197: 8
A198: 35 | B198: Research & Development | C198: 3 | D198: Female | E198: 37 | F198: 2 | G198: Laboratory Technician | H198: 2 | I198: 4425 | J198: 3 | K198: 10 | L198: 6
A199: 42 | B199: Research & Development | C199: 2 | D199: Female | E199: 36 | F199: 2 | G199: Laboratory Technician | H199: 3 | I199: 5265 | J199: 3 | K199: 11 | L199: 5
A200: 38 | B200: Research & Development | C200: 4 | D200: Male | E200: 88 | F200: 2 | G200: Laboratory Technician | H200: 3 | I200: 6553 | J200: 3 | K200: 14 | L200: 1
... 1271 more rows

Sheet 5.ID (hidden)
A1: Do Not Alter or Delete this Worksheet or you submission cannot be graded! | E1: DirVer
A2: Action | B2: Name | C2: Panther ID | D2: Date/Time | E2: Ex8
A3: Start Ex8 | B3: Andrice | C3: 99999000 | D3: 2020-08-29T16:43:40.410 | E3: Microsoft Office User
A4: Starter Sheet | B4: None | C4: 0 | D4: 2020-01-01
E5: Welcome to Microsoft Excel version 16.16 build 810 running on Macintosh (Intel) Version 10.13.6 (Build 17G14019)!

Sheet Sheet9 (hidden)
